fUSD/lending_fUSD_20260106
["ID","MTS","AMOUNT","RATE_DAILY","PERIOD"]
[400544764,1767709473233,-151.0,0.00043228,120]
[400544765,1767709473316,-151.0,0.00043228,120]
[400544766,1767709473401,-151.0,0.00043228,120]
[400544767,1767709473492,-151.0,0.00043228,120]
[400544768,1767709473571,-243.131677,0.00043228,120]
[400544769,1767709473663,-151.0,0.00043228,120]
[400544770,1767709473745,-176.596384,0.00043228,120]
[400544771,1767709473835,-151.0,0.00043228,120]
[400544772,1767709473912,-151.0,0.00043228,120]
[400544773,1767709473985,-151.0,0.00043228,120]
[400544774,1767709474058,-151.0,0.00043228,120]
[400544775,1767709474130,-151.0,0.00043228,120]
[400544776,1767709474202,-151.0,0.00043228,120]
[400544777,1767709474274,-151.0,0.00043228,120]
[400544778,1767709474352,-151.0,0.00043228,120]
[400544779,1767709474428,-151.0,0.00043228,120]
[400544780,1767709474503,-151.0,0.00043228,120]
[400544781,1767709474582,-151.0,0.00043228,120]
[400544782,1767709474658,-212.313693,0.00043228,120]
[400544783,1767709474731,-158.547009,0.00043228,120]
[400544784,1767709474803,-151.0,0.00043228,120]
[400544785,1767709474878,-151.0,0.00043228,120]
[400544786,1767709474950,-151.0,0.00043228,120]
[400544787,1767709475024,-151.0,0.00043228,120]
[400544788,1767709475099,-151.0,0.00043228,120]
[400544789,1767709475176,-151.0,0.00043228,120]
[400544790,1767709475252,-151.0,0.00043228,120]
[400544791,1767709475327,-151.0,0.00043228,120]
[400544792,1767709475403,-151.0,0.00043228,120]
[400544793,1767709475480,-151.0,0.00043228,120]
[400544794,1767709475561,-151.0,0.00043228,120]
[400544795,1767709475640,-151.0,0.00043228,120]
[400544796,1767709475717,-161.68064,0.00043228,120]
[400544797,1767709475791,-151.0,0.00043228,120]
[400544798,1767709475867,-151.0,0.00043228,120]
[400544799,1767709475942,-151.0,0.00043228,120]
[400544800,1767709476015,-151.0,0.00043228,120]
[400544801,1767709476088,-151.0,0.00043228,120]
[400544802,1767709476164,-151.0,0.00043228,120]
[400544803,1767709476240,-252.139252,0.00043228,120]
[400544804,1767709476317,-256.18893,0.00043228,120]
[400544805,1767709476394,-252.139252,0.00043228,120]
[400544806,1767709476474,-252.139252,0.00043228,120]
[400544807,1767709476553,-252.139252,0.00043228,120]
[400544808,1767709476642,-252.139252,0.00043228,120]
[400544809,1767709476727,-252.139252,0.00043228,120]
[400544810,1767709476803,-252.139252,0.00043228,120]
[400544811,1767709476878,-252.139252,0.00043228,120]
[400544812,1767709476952,-252.139252,0.00043228,120]
[400544813,1767709477027,-252.139252,0.00043228,120]
[400544814,1767709477101,-252.139252,0.00043228,120]
[400544815,1767709477175,-151.0,0.00043228,60]
[400544816,1767709477249,-252.139252,0.00043228,120]
[400544817,1767709477330,-250.041837,0.00043228,60]
[400544818,1767709477411,-252.139252,0.00043228,120]
[400544819,1767709477489,-252.139252,0.00043228,120]
[400544820,1767709477570,-252.139252,0.00043228,120]
[400544821,1767709477647,-252.139252,0.00043228,120]
[400544822,1767709477725,-252.139252,0.00043228,120]
[400544823,1767709477801,-252.139252,0.00043228,120]
[400544824,1767709477875,-252.139252,0.00043228,120]
[400544825,1767709477951,-252.139251,0.00043228,120]
[400544826,1767709478028,-151.0,0.00043228,120]
[400544827,1767709478104,-151.0,0.00043228,120]
[400544828,1767709478183,-151.0,0.00043228,120]
[400544829,1767709478262,-151.0,0.00043228,120]
[400544830,1767709478341,-178.196374,0.00043228,120]
[400544831,1767709478420,-151.0,0.00043228,120]
[400544832,1767709478497,-151.0,0.00043228,120]
[400544833,1767709478575,-151.0,0.00043228,120]
[400544834,1767709478661,-151.0,0.00043228,120]
[400544835,1767709478737,-151.0,0.00043228,120]
[400544836,1767709478810,-151.0,0.00043228,120]
[400544837,1767709478883,-151.0,0.00043228,120]
[400544838,1767709478959,-151.0,0.00043228,120]
[400544839,1767709479054,-151.0,0.00043228,120]
[400544840,1767709479136,-151.0,0.00043228,120]
[400544841,1767709479377,-173.339973,0.00043228,120]
[400544842,1767709479454,-151.0,0.00043228,120]
[400544843,1767709479529,-151.0,0.00043228,120]
[400544844,1767709479606,-151.0,0.00043228,120]
[400544845,1767709479683,-151.0,0.00043228,120]
[400544846,1767709479756,-151.0,0.00043228,120]
[400544847,1767709479826,-207.379886,0.00043228,120]
[400544848,1767709479895,-151.0,0.00043228,120]
[400544849,1767709479967,-151.0,0.00043228,120]
[400544850,1767709480039,-151.0,0.00043228,120]
[400544851,1767709480110,-151.0,0.00043228,120]
[400544852,1767709480182,-151.0,0.00043228,120]
[400544853,1767709480254,-151.0,0.00043228,120]
[400544854,1767709480341,-151.0,0.00043228,120]
[400544855,1767709480416,-151.0,0.00043228,120]
[400544856,1767709480497,-151.0,0.00043228,120]
[400544857,1767709480574,-188.540171,0.00043228,120]
[400544858,1767709480661,-151.0,0.00043228,120]
[400544859,1767709480734,-151.0,0.00043228,120]
[400544860,1767709480806,-164.606244,0.00043228,120]
[400544861,1767709480878,-151.0,0.00043228,120]
[400544862,1767709480949,-151.0,0.00043228,120]
[400544863,1767709481021,-151.0,0.00043228,120]
[400544864,1767709481094,-151.0,0.00043228,120]
[400544865,1767709481166,-151.0,0.00043228,120]
[400544866,1767709481239,-151.0,0.00043228,120]
[400544867,1767709481315,-151.0,0.00043228,120]
[400544868,1767709481392,-151.0,0.00043228,120]
[400544869,1767709481464,-151.0,0.00043228,120]
[400544870,1767709481538,-151.0,0.00043228,120]
[400544871,1767709481620,-151.0,0.00043228,120]
[400544872,1767709481694,-151.0,0.00043228,120]
[400544873,1767709481766,-151.0,0.00043228,120]
[400544874,1767709481838,-151.0,0.00043228,120]
[400544875,1767709481907,-180.346396,0.00043228,120]
[400544876,1767709481979,-151.0,0.00043228,120]
[400544877,1767709482051,-151.0,0.00043228,120]
[400544878,1767709482124,-151.0,0.00043228,120]
[400544879,1767709482199,-151.0,0.00043228,120]
[400544880,1767709482274,-151.0,0.00043228,120]
[400544881,1767709482349,-151.0,0.00043228,120]
[400544882,1767709482425,-151.0,0.00043228,120]
[400544883,1767709482500,-151.0,0.00043228,120]
[400544884,1767709482578,-151.0,0.00043228,120]
[400544885,1767709482654,-281.52862,0.00043228,120]
[400544886,1767709482732,-151.0,0.00043228,120]
[400544887,1767709482807,-151.0,0.00043228,120]
[400544888,1767709482880,-198.724959,0.00043228,120]
[400544889,1767709482954,-151.0,0.00043228,120]
[400544890,1767709483026,-151.0,0.00043228,120]
[400544891,1767709483099,-151.0,0.00043228,120]
[400544892,1767709483174,-151.0,0.00043228,120]
[400544893,1767709483245,-151.0,0.00043228,120]
[400544894,1767709483318,-151.0,0.00043228,120]
[400544895,1767709483391,-151.0,0.00043228,120]
[400544896,1767709483464,-190.408048,0.00043228,120]
[400544897,1767709483536,-151.0,0.00043228,120]
[400544898,1767709483611,-151.0,0.00043228,120]
[400544899,1767709483688,-151.0,0.00043228,120]
[400544900,1767709483760,-151.0,0.00043228,120]
[400544901,1767709483830,-158.565545,0.00043228,120]
[400544902,1767709483902,-151.0,0.00043228,120]
[400544903,1767709483973,-158.565545,0.00043228,120]
[400544904,1767709484044,-151.0,0.00043228,120]
[400544905,1767709484114,-158.565545,0.00043228,120]
[400544906,1767709484187,-151.0,0.00043228,120]
[400544907,1767709484258,-158.565545,0.00043228,120]
[400544908,1767709484331,-151.0,0.00043228,120]
[400544909,1767709484406,-158.565545,0.00043228,120]
[400544910,1767709484476,-151.0,0.00043228,120]
[400544911,1767709484546,-158.565545,0.00043228,120]
[400544912,1767709484620,-151.0,0.00043228,120]
[400544913,1767709484695,-158.565545,0.00043228,120]
[400544915,1767709484765,-151.0,0.00043228,120]
[400544916,1767709484837,-158.565545,0.00043228,120]
[400544917,1767709484910,-151.0,0.00043228,120]
[400544918,1767709484982,-158.565545,0.00043228,120]
[400544919,1767709485058,-285.35929,0.00043228,120]
[400544920,1767709485132,-158.565545,0.00043228,120]
[400544921,1767709485208,-158.565545,0.00043228,120]
[400544922,1767709485286,-158.565545,0.00043228,120]
[400544923,1767709485364,-158.565545,0.00043228,120]
[400544924,1767709485445,-158.565545,0.00043228,120]
[400544925,1767709485521,-158.565545,0.00043228,120]
[400544926,1767709485597,-158.565545,0.00043228,120]
[400544927,1767709485673,-158.565545,0.00043228,120]
[400544928,1767709485749,-158.565545,0.00043228,120]
[400544929,1767709485824,-158.565545,0.00043228,120]
[400544930,1767709485898,-158.565554,0.00043228,120]
[400544931,1767709485971,-151.0,0.00043228,120]
[400544932,1767709486043,-151.0,0.00043228,120]
[400544933,1767709486116,-151.0,0.00043228,120]
[400544934,1767709486190,-151.0,0.00043228,120]
[400544935,1767709486262,-151.0,0.00043228,120]
[400544936,1767709486337,-151.0,0.00043228,120]
[400544937,1767709486550,-151.0,0.00043228,120]
[400544938,1767709486631,-151.0,0.00043228,120]
[400544939,1767709486709,-156.814288,0.00043228,120]
[400544940,1767709486787,-175.863763,0.00043228,120]
[400544941,1767709486879,-175.863763,0.00043228,120]
[400544942,1767709486973,-175.863763,0.00043228,120]
[400544943,1767709487074,-183.24703799,0.00043229,31]
[400544944,1767709487153,-321.24518713,0.00043229,31]
[400544945,1767709487230,-383.95014612,0.00043229,31]
[400544946,1767709487308,-300.0,0.00043233,30]
[400544947,1767709487384,-300.0,0.00043234,30]
[400544948,1767709487465,-500.0,0.00043234,120]
[400544949,1767709487548,-500.0,0.00043234,120]
[400544950,1767709487634,-500.0,0.00043234,120]
[400544951,1767709487717,-195.57865186,0.00043234,120]
[400544952,1767709487797,-300.0,0.00043234,30]
[400544953,1767709487874,-300.0,0.00043234,30]
[400544954,1767709487951,-151.0,0.00043235,120]
[400544955,1767709488027,-151.0,0.00043235,120]
[400544956,1767709488100,-151.0,0.00043235,120]
[400544957,1767709488175,-151.0,0.00043235,120]
[400544958,1767709488251,-180.793926,0.00043235,120]
[400544959,1767709488329,-180.793926,0.00043235,120]
[400544960,1767709488408,-180.793926,0.00043235,120]
[400544961,1767709488484,-180.793926,0.00043235,120]
[400544962,1767709488560,-180.793926,0.00043235,120]
[400544963,1767709488637,-180.793926,0.00043235,120]
[400544964,1767709488712,-180.793926,0.00043235,120]
[400544965,1767709488785,-180.793926,0.00043235,120]
[400544966,1767709488857,-180.793926,0.00043235,120]
[400544967,1767709488932,-180.793926,0.00043235,120]
[400544968,1767709489006,-180.793926,0.00043235,120]
[400544969,1767709489080,-180.793926,0.00043235,120]
[400544970,1767709489153,-180.793926,0.00043235,120]
[400544971,1767709489225,-180.793926,0.00043235,120]
[400544972,1767709489302,-180.793926,0.00043235,120]
[400544973,1767709489378,-180.793926,0.00043235,120]
[400544974,1767709489455,-180.793926,0.00043235,120]
[400544975,1767709489530,-180.793926,0.00043235,120]
[400544976,1767709489608,-180.793926,0.00043235,120]
[400544977,1767709489684,-180.793927,0.00043235,120]
[400544978,1767709489759,-246.069034,0.00043235,30]
[400544979,1767709489830,-158.903179,0.00043235,120]
[400544980,1767709489904,-158.903179,0.00043235,120]
[400544981,1767709489976,-158.903179,0.00043235,120]
[400544982,1767709490050,-158.903179,0.00043235,120]
[400544983,1767709490122,-158.903179,0.00043235,120]
[400544984,1767709490198,-158.903179,0.00043235,120]
[400544985,1767709490270,-158.903179,0.00043235,120]
[400544986,1767709490345,-158.903179,0.00043235,120]
[400544987,1767709490420,-158.903179,0.00043235,120]
[400544988,1767709490494,-158.903179,0.00043235,120]
[400544989,1767709490571,-158.903179,0.00043235,120]
[400544990,1767709490647,-158.903179,0.00043235,120]
[400544991,1767709490722,-158.903179,0.00043235,120]
[400544992,1767709490798,-158.903179,0.00043235,120]
[400544993,1767709490870,-212.200798,0.00043235,120]
[400544994,1767709490950,-158.903179,0.00043235,120]
[400544995,1767709491024,-212.200798,0.00043235,120]
[400544996,1767709491101,-158.903179,0.00043235,120]
[400544997,1767709491176,-212.200798,0.00043235,120]
[400544998,1767709491255,-158.903179,0.00043235,120]
[400544999,1767709491332,-212.200798,0.00043235,120]
[400545000,1767709491410,-158.903179,0.00043235,120]
[400545001,1767709491486,-212.200798,0.00043235,120]
[400545002,1767709491566,-158.903179,0.00043235,120]
[400545003,1767709491643,-212.200798,0.00043235,120]
[400545004,1767709491724,-158.903179,0.00043235,120]
[400545005,1767709491800,-212.200798,0.00043235,120]
[400545006,1767709491877,-212.200798,0.00043235,120]
[400545007,1767709491953,-212.200798,0.00043235,120]
[400545008,1767709492030,-212.200798,0.00043235,120]
[400545009,1767709492107,-212.200798,0.00043235,120]
[400545010,1767709492181,-212.200798,0.00043235,120]
[400545011,1767709492259,-212.200798,0.00043235,120]
[400545012,1767709492335,-212.200798,0.00043235,120]
[400545013,1767709492416,-212.200798,0.00043235,120]
[400545014,1767709492487,-212.200798,0.00043235,120]
[400545015,1767709492564,-212.200798,0.00043235,120]
[400545016,1767709492641,-212.200798,0.00043235,120]
[400545017,1767709492717,-212.200798,0.00043235,120]
[400545018,1767709492791,-212.200801,0.00043235,120]
[400545019,1767709492866,-159.874682,0.00043235,120]
[400545020,1767709492940,-151.0,0.00043235,120]
[400545021,1767709493015,-151.0,0.00043235,120]
[400545022,1767709493085,-151.0,0.00043235,120]
[400545023,1767709493157,-151.0,0.00043235,120]
[400545024,1767709493226,-151.0,0.00043235,120]
[400545025,1767709493303,-151.0,0.00043235,120]
[400545026,1767709493388,-151.0,0.00043235,120]
[400545027,1767709493468,-151.0,0.00043235,120]
[400545028,1767709493547,-151.0,0.00043235,120]
[400545029,1767709493627,-151.0,0.00043235,120]
[400545030,1767709493715,-151.0,0.00043235,120]
[400545031,1767709493974,-151.0,0.00043235,120]
[400545032,1767709494052,-151.0,0.00043235,120]
[400545033,1767709494131,-159.71777644,0.0004325,31]
[400545034,1767709494219,-52236.78687714,0.0004325,30]
[400545035,1767709494297,-151.0,0.0004325,120]
[400545036,1767709494372,-151.0,0.0004325,120]
[400545037,1767709494449,-151.0,0.0004325,120]
[400545038,1767709494528,-184.543404,0.0004325,120]
[400545039,1767709494603,-151.0,0.0004325,120]
[400545040,1767709494677,-151.0,0.0004325,120]
[400545041,1767709494749,-151.0,0.0004325,120]
[400545042,1767709494823,-278.17483,0.0004325,120]
[400545044,1767709494896,-151.0,0.0004325,120]
[400545045,1767709494967,-151.0,0.0004325,120]
[400545046,1767709495043,-164.796381,0.0004325,120]
[400545047,1767709495115,-151.0,0.0004325,120]
[400545048,1767709495188,-151.0,0.0004325,120]
[400545049,1767709495261,-151.0,0.0004325,120]
[400545050,1767709495335,-151.0,0.0004325,120]
[400545051,1767709495410,-151.0,0.0004325,120]
[400545052,1767709495496,-165.051334,0.0004325,120]
[400545053,1767709495580,-150.38,0.000433,60]
[400545054,1767709495662,-482.57,0.000433,30]
[400545055,1767709495741,-194.3044,0.00043635,120]
[400545056,1767709495821,-999.0,0.00044181,120]
[400545057,1767709495901,-714.7,0.00044916,120]
[400545058,1767709495976,-210.0,0.0004496,30]
[400545059,1767709496054,-1613.08,0.00045,120]
[400545060,1767709496132,-438.31339759,0.00045277,120]
[400545061,1767709496214,-1353.9,0.00045586,120]
[400545062,1767709496298,-1353.9,0.00046257,120]
[400545063,1767709496378,-482.57,0.000464,30]
[400545064,1767709496447,-204.536313,0.00046505,120]
[400545065,1767709496523,-319.28209618,0.00046764,120]
[400545066,1767709496608,-1353.9,0.00046928,120]
[400545067,1767709496688,-210.0,0.0004698,30]
[400545068,1767709496765,-5161.76005,0.00047466,30]
[400545069,1767709496843,-500.0,0.000478,60]
[400545070,1767709496921,-202.50440964,0.00048896,60]
[400545071,1767709496993,-210.0,0.0004899,30]
[400545072,1767709497066,-569.0,0.00049,60]
[400545073,1767709497141,-188.6,0.00049,120]
[400545074,1767709497220,-5000.0,0.00049234,60]
[400545075,1767709497298,-10000.0,0.00049315,120]
[400545076,1767709497374,-482.57,0.000494,30]
[400545077,1767709497449,-253.0,0.000494,65]
[400545078,1767709497523,-1316.24147149,0.000498,30]
[400545079,1767709497598,-167.24,0.000498,30]
[400545080,1767709497674,-347.01514017,0.000499,30]
[400545081,1767709497750,-222.4,0.000499,30]
[400545082,1767709497827,-50000.0,0.0005,50]
[400545083,1767709497902,-150.0,0.0005,40]
[400545084,1767709497974,-500.0,0.0005,30]
[400545085,1767709498045,-5000.0,0.0005,45]
[400545086,1767709498115,-100000.0,0.0005,30]
[400545087,1767709498184,-105015.5947193,0.0005,30]
[400545088,1767709498254,-157.29158096,0.0005,30]
[400545089,1767709498327,-7200.0,0.0005,30]
[400545090,1767709498407,-1613.08,0.0005,120]
[400545091,1767709498488,-220.0,0.0005,120]
[400545092,1767709498567,-253.0,0.000504,68]
[400545093,1767709498644,-365.83535434,0.00050499,120]
[400545094,1767709498719,-322.6107,0.00050499,120]
[400545095,1767709498795,-414.0,0.00050499,120]
[400545096,1767709498868,-429.318,0.00050499,120]
[400545097,1767709498945,-500.0,0.00050499,120]
[400545098,1767709499021,-500.0,0.00050499,120]
[400545099,1767709499098,-500.0,0.00050499,120]
[400545100,1767709499173,-500.0,0.00050499,120]
[400545101,1767709499250,-500.0,0.00050499,120]
[400545102,1767709499327,-250.0,0.00050499,120]
[400545103,1767709499404,-500.0,0.00050499,120]
[400545104,1767709499480,-250.0,0.00050499,120]
[400545105,1767709499558,-500.0,0.00050499,120]
[400545106,1767709499635,-250.0,0.00050499,120]
[400545107,1767709499713,-500.0,0.00050499,120]
[400545108,1767709499787,-250.0,0.00050499,120]
[400545109,1767709499861,-500.0,0.00050499,120]
[400545110,1767709499938,-500.0,0.00050499,120]
[400545111,1767709500017,-500.0,0.00050499,120]
[400545112,1767709500094,-151.0,0.00050499,120]
[400545113,1767709500173,-500.0,0.00050499,120]
[400545114,1767709500255,-156.587,0.00050499,120]
[400545115,1767709500344,-500.0,0.00050499,120]
[400545116,1767709500423,-162.380719,0.00050499,120]
[400545117,1767709500511,-500.0,0.00050499,120]
[400545118,1767709500597,-500.0,0.00050499,120]
[400545119,1767709500674,-151.0,0.00050499,120]
[400545120,1767709500750,-165.99337346,0.00050499,120]
[400545121,1767709500828,-500.0,0.00050499,120]
[400545122,1767709500903,-151.0,0.00050499,120]
[400545123,1767709500976,-500.0,0.00050499,120]
[400545124,1767709501049,-500.0,0.00050499,120]
[400545125,1767709501122,-151.0,0.00050499,120]
[400545126,1767709501198,-500.0,0.00050499,120]
[400545127,1767709501423,-500.0,0.00050499,120]
[400545128,1767709501495,-151.0,0.00050499,120]
[400545129,1767709501572,-500.0,0.00050499,120]
[400545130,1767709501650,-500.0,0.00050499,120]
[400545131,1767709501725,-151.0,0.00050499,120]
[400545132,1767709501799,-500.0,0.00050499,120]
[400545133,1767709501873,-500.0,0.00050499,120]
[400545134,1767709501947,-151.0,0.00050499,120]
[400545135,1767709502021,-500.0,0.00050499,120]
[400545136,1767709502095,-151.0,0.00050499,120]
[400545137,1767709502173,-500.0,0.00050499,120]
[400545138,1767709502247,-151.0,0.00050499,120]
[400545139,1767709502322,-500.0,0.00050499,120]
[400545140,1767709502395,-151.0,0.00050499,120]
[400545141,1767709502464,-500.0,0.00050499,120]
[400545142,1767709502538,-151.0,0.00050499,120]
[400545143,1767709502613,-250.0,0.00050499,120]
[400545145,1767709502682,-500.0,0.00050499,120]
[400545146,1767709502753,-151.0,0.00050499,120]
[400545147,1767709502823,-250.0,0.00050499,120]
[400545148,1767709502893,-500.0,0.00050499,120]
[400545149,1767709502962,-151.0,0.00050499,120]
[400545150,1767709503038,-250.0,0.00050499,120]
[400545151,1767709503127,-500.0,0.00050499,120]
[400545152,1767709503213,-151.0,0.00050499,120]
[400545153,1767709503300,-500.0,0.00050499,120]
[400545154,1767709503390,-151.0,0.00050499,120]
[400545155,1767709503477,-250.0,0.00050499,120]
[400545156,1767709503563,-500.0,0.00050499,120]
[400545157,1767709503651,-151.0,0.00050499,120]
[400545158,1767709503741,-269.69223795,0.00050499,120]
[400545159,1767709503826,-990479.3665741,0.000505,120]
[400545160,1767709503907,-272.78909936,0.000505,120]
[400545161,1767709503989,-10000.0,0.00050684,120]
[400545162,1767709504065,-5000.0,0.000509,120]
[400545163,1767709504151,-1624.71,0.000509,120]
[400545164,1767709504234,-195.0,0.00050911,120]
[400545165,1767709504317,-1000.0,0.00050999,120]
[400545166,1767709504402,-11408.90871368,0.00051,120]
[400545167,1767709504487,-150.0,0.00051,40]
[400545168,1767709504572,-384.15963286,0.00051,120]
[400545169,1767709504656,-150.0,0.00051,120]
[400545170,1767709504740,-299.71728109,0.00051,120]
[400545171,1767709504823,-1000.0,0.00051,120]
[400545172,1767709504906,-2155.9530089,0.00051,120]
[400545173,1767709504990,-1303.33983851,0.00051,120]
[400545174,1767709505074,-350000.0,0.00051,30]
[400545175,1767709505160,-1518.0,0.00051,120]
[400545176,1767709505246,-152.0,0.00051,120]
[400545177,1767709505332,-300.75918393,0.0005109,120]
[400545178,1767709505419,-243.69022498,0.0005111,120]
[400545179,1767709505505,-1728.62323833,0.000512,120]
[400545180,1767709505594,-634.100078,0.000512,120]
[400545181,1767709505679,-1000.0,0.00051384,31]
[400545182,1767709505760,-1263.0,0.00051397,120]
[400545183,1767709505841,-253.0,0.000514,72]
[400545184,1767709505921,-1000000.0,0.0005142,120]
[400545185,1767709506006,-5000000.0,0.000515,120]
[400545186,1767709506092,-4157231.99420202,0.000515,120]
[400545191,1767709577555,-300.0,0.00017999,2]
[400545192,1767709577585,-1999700.0,0.00018,2]
[400545193,1767709597068,-1000.1,0.00039,30]
[400545194,1767709597149,-1000.0,0.00039,30]
[400545195,1767709597230,-500.0,0.00039889,31]
[400545196,1767709597312,-533.41907053,0.00039889,31]
[400545197,1767709597389,-155.87206275,0.00039899,120]
[400545198,1767709597469,-161.99038488,0.00039899,120]
[400545199,1767709597549,-310.70902267,0.00039899,120]
[400545200,1767709597634,-250.0,0.0004,45]
[400545201,1767709597715,-152.0,0.0004,120]
[400545202,1767709597796,-22499.99,0.0004,120]
[400545203,1767709597877,-250.0,0.000405,45]
[400545204,1767709597974,-155.73,0.0004051,120]
[400545205,1767709598059,-155.73,0.0004061,120]
[400545206,1767709598141,-155.73,0.0004071,120]
[400545207,1767709598229,-155.73,0.0004081,120]
[400545208,1767709598314,-152.0,0.000409,120]
[400545209,1767709598396,-155.73,0.0004091,120]
[400545210,1767709598476,-250.0,0.00041,45]
[400545211,1767709598556,-155.73,0.0004101,120]
[400545212,1767709598636,-1013.0,0.00041096,102]
[400545213,1767709598717,-155.73,0.0004111,120]
[400545214,1767709598793,-155.73,0.0004121,120]
[400545215,1767709598871,-155.73,0.0004131,120]
[400545216,1767709598964,-155.73,0.0004141,120]
[400545217,1767709599044,-363.15430379,0.0004142,120]
[400545218,1767709599127,-199.17781272,0.000415,45]
[400545219,1767709599207,-155.73,0.0004151,120]
[400545220,1767709599291,-155.73,0.0004161,120]
[400545221,1767709599373,-155.82761916,0.0004171,120]
[400545222,1767709599455,-152.0,0.000418,120]
[400545223,1767709599541,-189.45312119,0.000419,120]
[400545224,1767709599624,-189.45312119,0.000419,120]
[400545225,1767709599708,-189.45312119,0.000419,120]
[400545226,1767709599792,-189.45312119,0.000419,120]
[400545227,1767709599871,-189.45312119,0.000419,120]
[400545228,1767709599950,-189.45312119,0.00041902,120]
[400545229,1767709600027,-396.20552337,0.00041989,120]
[400545230,1767709600109,-387.25292527,0.00041989,120]
[400545231,1767709600188,-396.01506528,0.00041989,120]
[400545232,1767709600267,-179.15230529,0.00041989,120]
[400545233,1767709600352,-500.48,0.00042,60]
[400545234,1767709600433,-189.45312119,0.00042077,120]
[400545235,1767709600516,-189.45312119,0.00042252,120]
[400545236,1767709600605,-189.45312119,0.00042427,120]
[400545237,1767709600697,-189.45312119,0.00042603,120]
[400545238,1767709600782,-152.0,0.000427,120]
[400545239,1767709600868,-189.45312119,0.00042778,120]
[400545240,1767709600949,-251.87316765,0.00042933,120]
[400545241,1767709601029,-439.29698496,0.00042933,30]
[400545242,1767709601108,-189.45312119,0.00042953,120]
[400545243,1767709601190,-189.45312119,0.00043128,120]
[400545244,1767709601273,-175.863763,0.00043228,120]
[400545245,1767709601356,-175.863763,0.00043228,120]
[400545246,1767709601435,-175.863763,0.00043228,120]
[400545247,1767709601516,-175.863763,0.00043228,120]
[400545248,1767709601598,-175.863763,0.00043228,120]
[400545249,1767709601681,-175.863763,0.00043228,120]
[400545250,1767709601764,-175.863763,0.00043228,120]
[400545251,1767709601847,-175.863763,0.00043228,120]
[400545252,1767709601925,-175.863763,0.00043228,120]
[400545253,1767709602006,-175.863763,0.00043228,120]
[400545254,1767709602088,-175.863763,0.00043228,120]
[400545255,1767709602168,-175.863763,0.00043228,120]
[400545256,1767709602253,-175.863763,0.00043228,120]
[400545257,1767709602335,-175.863763,0.00043228,120]
[400545258,1767709602415,-175.863763,0.00043228,120]
[400545259,1767709602496,-175.863763,0.00043228,120]
[400545260,1767709602580,-175.863767,0.00043228,120]
[400545261,1767709602663,-239.57666465,0.0004325,31]
[400545262,1767709602951,-51118.39343856,0.0004325,30]
[400545263,1767709603031,-151.0,0.0004325,120]
[400545264,1767709603110,-157.236016,0.0004325,120]
[400545265,1767709603190,-151.0,0.0004325,120]
[400545266,1767709603270,-152.416691,0.0004325,120]
[400545267,1767709603349,-151.0,0.0004325,120]
[400545268,1767709603430,-151.0,0.0004325,120]
[400545269,1767709603513,-151.0,0.0004325,120]
[400545270,1767709603595,-151.0,0.0004325,120]